Department,Entity, Transaction Date, Expense Type, Expense Area, Supplier Name,Transaction number, Amount, Invoice Description
DFID,CSC,03/07/2018,Scholar Stipend,Award Costs,Scholar,PIN034254,2724.83,
DFID,CSC,03/07/2018,Scholar Stipend,Award Costs,Scholar,PIN034255,2829.79,
DFID,CSC,03/07/2018,Scholar Stipend,Award Costs,Scholar,PIN034256,2969.75,
DFID,CSC,03/07/2018,Scholar Stipend,Award Costs,Scholar,PIN034257,1065,
DFID,CSC,03/07/2018,Scholar Stipend,Award Costs,Scholar,PIN034258,3513.06,
DFID,CSC,03/07/2018,Scholar Stipend,Award Costs,Scholar,PIN034259,3513.06,
DFID,CSC,03/07/2018,Scholar Stipend,Award Costs,Scholar,PIN034260,3195,
DFID,CSC,03/07/2018,Scholar Stipend,Award Costs,Scholar,PIN034261,874.73,
DFID,CSC,03/07/2018,Scholar Stipend,Award Costs,Scholar,PIN034262,2899.77,
DFID,CSC,03/07/2018,Scholar Stipend,Award Costs,Scholar,PIN034263,3195,
DFID,CSC,03/07/2018,Scholar Stipend,Award Costs,Scholar,PIN034264,2899.77,
DFID,CSC,03/07/2018,Scholar Stipend,Award Costs,Scholar,PIN034265,874.73,
DFID,CSC,03/07/2018,Scholar Stipend,Award Costs,Scholar,PIN034266,3918,
DFID,CSC,03/07/2018,Scholar Stipend,Award Costs,Scholar,PIN034267,3144.7,
DFID,CSC,03/07/2018,Scholar Stipend,Award Costs,Scholar,PIN034268,2969.75,
DFID,CSC,03/07/2018,Scholar Stipend,Award Costs,Scholar,PIN034269,874.73,
DFID,CSC,04/07/2018,Scholar Stipend,Award Costs,Scholar,PIN034282,3195,
DFID,CSC,05/07/2018,Scholar Allowances,Award Costs,Scholar,PIN034315,687,
DFID,CSC,05/07/2018,Scholar Allowances,Award Costs,Scholar,PIN034315,1023,
DFID,CSC,05/07/2018,Scholar Stipend,Award Costs,Scholar,PIN034315,3195,
DFID,CSC,05/07/2018,Scholar Allowances,Award Costs,Scholar,PIN034316,687,
DFID,CSC,05/07/2018,Scholar Allowances,Award Costs,Scholar,PIN034316,1359,
DFID,CSC,05/07/2018,Scholar Stipend,Award Costs,Scholar,PIN034316,3195,
BEIS,CSC,06/07/2018,Scholar Allowances,Award Costs,Scholar,PIN034284,1000,
DFID,CSC,06/07/2018,Scholar Stipend,Award Costs,Scholar,PIN034288,2612,
DFID,CSC,06/07/2018,Tuition Fee,Award Costs,University of Glasgow,PIN034290,-1820,
DFID,CSC,06/07/2018,Tuition Fee,Award Costs,University of Glasgow,PIN034291,14300,
DFID,CSC,06/07/2018,Award Support Costs,Award Costs,Imperial College London,PIN034292,5000,
DFID,CSC,06/07/2018,Award Support Costs,Award Costs,Imperial College London,PIN034292,3334,
DFID,CSC,06/07/2018,Award Support Costs,Award Costs,Imperial College London,PIN034292,5000,
DFID,CSC,06/07/2018,Award Support Costs,Award Costs,University of Leicester,PIN034293,5410,
DFID,CSC,06/07/2018,Tuition Fee,Award Costs,Leeds Beckett University,PIN034295,10500,
DFID,CSC,06/07/2018,Scholar Travel,Award Costs,Leeds Beckett University,PIN034295,695.3,
DFID,CSC,06/07/2018,Scholar Travel,Award Costs,Leeds Beckett University,PIN034295,111.3,
DFID,CSC,06/07/2018,Scholar Travel,Award Costs,Leeds Beckett University,PIN034296,683.46,
DFID,CSC,06/07/2018,Scholar Allowances,Award Costs,Leeds Beckett University,PIN034296,200,
DFID,CSC,06/07/2018,Scholar Allowances,Award Costs,Leeds Beckett University,PIN034296,225,
DFID,CSC,06/07/2018,Scholar Allowances,Award Costs,Leeds Beckett University,PIN034296,200,
DFID,CSC,06/07/2018,Scholar Travel,Award Costs,Leeds Beckett University,PIN034297,683.46,
DFID,CSC,06/07/2018,Scholar Allowances,Award Costs,Leeds Beckett University,PIN034297,200,
DFID,CSC,06/07/2018,Scholar Allowances,Award Costs,Leeds Beckett University,PIN034297,225,
DFID,CSC,06/07/2018,Scholar Allowances,Award Costs,Leeds Beckett University,PIN034297,200,
DFID,CSC,06/07/2018,Scholar Travel,Award Costs,Leeds Beckett University,PIN034298,586.82,
DFID,CSC,06/07/2018,Scholar Allowances,Award Costs,Leeds Beckett University,PIN034298,250,
DFID,CSC,06/07/2018,Scholar Allowances,Award Costs,Leeds Beckett University,PIN034298,225,
DFID,CSC,06/07/2018,Scholar Allowances,Award Costs,Leeds Beckett University,PIN034298,200,
DFID,CSC,06/07/2018,Visa Costs,Award Costs,Leeds Beckett University,PIN034299,76.94,
DFID,CSC,06/07/2018,Tuition Fee,Award Costs,Leeds Beckett University,PIN034299,10500,
DFID,CSC,06/07/2018,Scholar Travel,Award Costs,Leeds Beckett University,PIN034299,628.9,
DFID,CSC,06/07/2018,Scholar Travel,Award Costs,Leeds Beckett University,PIN034299,28.4,
DFID,CSC,06/07/2018,Visa Costs,Award Costs,Leeds Beckett University,PIN034300,75.36,
DFID,CSC,06/07/2018,Tuition Fee,Award Costs,Leeds Beckett University,PIN034300,10500,
DFID,CSC,06/07/2018,Scholar Travel,Award Costs,Leeds Beckett University,PIN034300,505.7,
DFID,CSC,06/07/2018,Visa Costs,Award Costs,Leeds Beckett University,PIN034301,76.36,
DFID,CSC,06/07/2018,Tuition Fee,Award Costs,Leeds Beckett University,PIN034301,10500,
DFID,CSC,06/07/2018,Scholar Travel,Award Costs,Leeds Beckett University,PIN034301,630.32,
DFID,CSC,06/07/2018,Scholar Allowances,Award Costs,Leeds Beckett University,PIN034302,225,
DFID,CSC,06/07/2018,Scholar Allowances,Award Costs,Leeds Beckett University,PIN034302,225,
DFID,CSC,06/07/2018,Scholar Allowances,Award Costs,Leeds Beckett University,PIN034302,200,
DFID,CSC,06/07/2018,Scholar Travel,Award Costs,Leeds Beckett University,PIN034302,785.69,
DFID,CSC,06/07/2018,Visa Costs,Award Costs,Leeds Beckett University,PIN034303,116.84,
DFID,CSC,06/07/2018,Tuition Fee,Award Costs,Leeds Beckett University,PIN034303,10500,
DFID,CSC,06/07/2018,Scholar Travel,Award Costs,Leeds Beckett University,PIN034303,695.3,
DFID,CSC,06/07/2018,Scholar Travel,Award Costs,Leeds Beckett University,PIN034303,111.3,
DFID,CSC,06/07/2018,Scholar Travel,Award Costs,Scholar,PIN034304,718.74,
DFID,CSC,06/07/2018,Scholar Stipend,Award Costs,Scholar,PIN034306,1659.83,
DFID,CSC,06/07/2018,Engagement,Programme Costs,DigitalMyWay,PIN034309,900,
DFID,CSC,06/07/2018,Scholar Allowances,Award Costs,Scholar,PIN034310,682,
DFID,CSC,06/07/2018,Scholar Allowances,Award Costs,Scholar,PIN034310,458,
DFID,CSC,06/07/2018,Engagement,Admin Costs,Association of Commonwealth Univs,PIN034311,773.4,
DFID,CSC,06/07/2018,Engagement,Admin Costs,Association of Commonwealth Univs,PIN034311,3867,
DFID,CSC,06/07/2018,Secretariat Service Provision,Programme Costs,Association of Commonwealth Univs,PIN034312,10600,
DFID,CSC,06/07/2018,Secretariat Service Provision,Programme Costs,Association of Commonwealth Univs,PIN034312,53000,
DFID,CSC,06/07/2018,Secretariat Service Provision,Programme Costs,Association of Commonwealth Univs,PIN034312,11250,
DFID,CSC,06/07/2018,Secretariat Service Provision,Programme Costs,Association of Commonwealth Univs,PIN034312,56250,
DFID,CSC,06/07/2018,Secretariat Service Provision,Programme Costs,Association of Commonwealth Univs,PIN034312,5350,
DFID,CSC,06/07/2018,Secretariat Service Provision,Programme Costs,Association of Commonwealth Univs,PIN034312,26750,
DFID,CSC,06/07/2018,Secretariat Service Provision,Programme Costs,Association of Commonwealth Univs,PIN034313,10600,
DFID,CSC,06/07/2018,Secretariat Service Provision,Programme Costs,Association of Commonwealth Univs,PIN034313,11250,
DFID,CSC,06/07/2018,Secretariat Service Provision,Programme Costs,Association of Commonwealth Univs,PIN034313,56250,
DFID,CSC,06/07/2018,Secretariat Service Provision,Programme Costs,Association of Commonwealth Univs,PIN034313,5350,
DFID,CSC,06/07/2018,Secretariat Service Provision,Programme Costs,Association of Commonwealth Univs,PIN034313,26750,
DFID,CSC,06/07/2018,Secretariat Service Provision,Admin Costs,Association of Commonwealth Univs,PIN034313,57700,Admin fee for 3rd quarter
DFID,CSC,06/07/2018,Secretariat Service Provision,Admin Costs,Association of Commonwealth Univs,PIN034313,288500,Admin fee for 3rd quarter
DFID,CSC,06/07/2018,Secretariat Service Provision,Programme Costs,Association of Commonwealth Univs,PIN034313,53000,
DFID,CSC,06/07/2018,Scholar Stipend,Award Costs,Scholar,PIN034317,3918,
BEIS,CSC,09/07/2018,Scholar Stipend,Award Costs,Scholar,PIN034318,4881,
DFID,CSC,09/07/2018,Scholar Stipend,Award Costs,Scholar,PIN034319,2130,
DFID,CSC,09/07/2018,Scholar Stipend,Award Costs,Scholar,PIN034320,2199.97,
DFID,CSC,09/07/2018,Scholar Stipend,Award Costs,Scholar,PIN034321,2619.85,
DFID,CSC,09/07/2018,Scholar Stipend,Award Costs,Scholar,PIN034323,2619.85,
DFID,CSC,09/07/2018,Scholar Stipend,Award Costs,Scholar,PIN034324,3856.32,
DFID,CSC,09/07/2018,Scholar Stipend,Award Costs,Scholar,PIN034325,3475.46,
DFID,CSC,09/07/2018,Scholar Stipend,Award Costs,Scholar,PIN034326,1065,
DFID,CSC,09/07/2018,Scholar Stipend,Award Costs,Scholar,PIN034327,2409.92,
DFID,CSC,09/07/2018,Scholar Stipend,Award Costs,Scholar,PIN034328,1049.69,
DFID,CSC,09/07/2018,Scholar Stipend,Award Costs,Scholar,PIN034329,2584.86,
DFID,CSC,09/07/2018,Scholar Stipend,Award Costs,Scholar,PIN034330,2654.91,
DFID,CSC,12/07/2018,Scholar Allowances,Award Costs,Scholar,PIN034341,687,
DFID,CSC,12/07/2018,Scholar Allowances,Award Costs,Scholar,PIN034342,687,
DFID,CSC,12/07/2018,Scholar Allowances,Award Costs,Scholar,PIN034343,687,
DFID,CSC,12/07/2018,Scholar Allowances,Award Costs,Scholar,PIN034344,687,
DFID,CSC,12/07/2018,Scholar Allowances,Award Costs,Scholar,PIN034345,1359,
DFID,CSC,12/07/2018,Scholar Allowances,Award Costs,Scholar,PIN034346,1023,
DFID,CSC,12/07/2018,Scholar Allowances,Award Costs,Scholar,PIN034347,687,
DFID,CSC,12/07/2018,Scholar Allowances,Award Costs,Scholar,PIN034348,687,
DFID,CSC,12/07/2018,Scholar Allowances,Award Costs,Scholar,PIN034349,1374,
DFID,CSC,12/07/2018,Scholar Stipend,Award Costs,Scholar,PIN034350,2829.79,
DFID,CSC,12/07/2018,Scholar Allowances,Award Costs,Scholar,PIN034351,550,
DFID,CSC,12/07/2018,Scholar Stipend,Award Costs,Scholar,PIN034368,2130,
DFID,CSC,12/07/2018,Scholar Stipend,Award Costs,Scholar,PIN034369,2130,
DFID,CSC,12/07/2018,Scholar Stipend,Award Costs,Scholar,PIN034372,2130,
DFID,CSC,12/07/2018,Scholar Stipend,Award Costs,Scholar,PIN034373,2130,
DFID,CSC,12/07/2018,Scholar Allowances,Award Costs,Scholar,PIN034375,682,
DFID,CSC,12/07/2018,Scholar Stipend,Award Costs,Scholar,PIN034376,3195,
BEIS,CSC,12/07/2018,Scholar Stipend,Award Costs,Scholar,PIN034377,4881,
DFID,CSC,13/07/2018,Award Support Costs,Award Costs,University of Manchester,PIN034353,4500,
BEIS,CSC,13/07/2018,Award Support Costs,Award Costs,University of Surrey,PIN034354,2500,
DFID,CSC,13/07/2018,Scholar Allowances,Award Costs,Scholar,PIN034357,600,
DFID,CSC,13/07/2018,Miscellaneous,Admin Costs,Crowe UK LLP,PIN034361,800,
DFID,CSC,13/07/2018,Miscellaneous,Admin Costs,Crowe UK LLP,PIN034361,4000,
DFID,CSC,13/07/2018,Scholar Engagement,Programme Costs,Scholar,PIN034362,600,
DFID,CSC,13/07/2018,Scholar Handbook,Admin Costs,TFW Printers,PIN034364,1890,
DFID,CSC,13/07/2018,Scholar Stipend,Award Costs,Scholar,PIN034365,2234.97,
DFID,CSC,13/07/2018,Scholar Engagement,Programme Costs,Diversity Travel,PIN034367,2588.56,
DFID,CSC,18/07/2018,Scholar Allowances,Award Costs,Scholar,PIN034378,300,
DFID,CSC,18/07/2018,Scholar Stipend,Award Costs,Scholar,PIN034378,2199.97,
BEIS,CSC,18/07/2018,Scholar Stipend,Award Costs,Scholar,PIN034379,4881,
DFID,CSC,18/07/2018,Scholar Stipend,Award Costs,Scholar,PIN034380,944.72,
DFID,CSC,18/07/2018,Scholar Allowances,Award Costs,Scholar,PIN034381,350,
DFID,CSC,18/07/2018,Scholar Stipend,Award Costs,Scholar,PIN034381,3770.55,
DFID,CSC,20/07/2018,Fieldwork Airfare,Award Costs,Diversity Travel,PIN034383,710.51,
BEIS,CSC,20/07/2018,Scholar Travel,Award Costs,Diversity Travel,PIN034383,367.8,
DFID,CSC,20/07/2018,Fieldwork Airfare,Award Costs,Diversity Travel,PIN034383,590.06,
DFID,CSC,20/07/2018,Scholar Travel,Award Costs,Diversity Travel,PIN034383,610.51,
DFID,CSC,20/07/2018,Scholar Travel,Award Costs,Diversity Travel,PIN034383,531.51,
DFID,CSC,20/07/2018,Scholar Travel,Award Costs,Diversity Travel,PIN034383,607.66,
BEIS,CSC,20/07/2018,Scholar Travel,Award Costs,Diversity Travel,PIN034383,271.2,
BEIS,CSC,20/07/2018,Scholar Travel,Award Costs,Diversity Travel,PIN034383,269,
BEIS,CSC,20/07/2018,Scholar Travel,Award Costs,Diversity Travel,PIN034383,502.5,
DFID,CSC,20/07/2018,Scholar Travel,Award Costs,Diversity Travel,PIN034384,511.41,
DFID,CSC,20/07/2018,Scholar Travel,Award Costs,Diversity Travel,PIN034385,649.12,
BEIS,CSC,20/07/2018,Scholar Travel,Award Costs,Diversity Travel,PIN034385,489.03,
BEIS,CSC,20/07/2018,Scholar Travel,Award Costs,Diversity Travel,PIN034385,502.2,
BEIS,CSC,20/07/2018,Scholar Travel,Award Costs,Diversity Travel,PIN034385,412.8,
BEIS,CSC,20/07/2018,Scholar Travel,Award Costs,Diversity Travel,PIN034385,240.8,
BEIS,CSC,20/07/2018,Scholar Travel,Award Costs,Diversity Travel,PIN034385,411.1,
BEIS,CSC,20/07/2018,Scholar Travel,Award Costs,Diversity Travel,PIN034385,481.8,
BEIS,CSC,20/07/2018,Scholar Travel,Award Costs,Diversity Travel,PIN034385,463.3,
BEIS,CSC,20/07/2018,Scholar Travel,Award Costs,Diversity Travel,PIN034385,345.5,
BEIS,CSC,20/07/2018,Scholar Travel,Award Costs,Diversity Travel,PIN034385,471.7,
DFID,CSC,20/07/2018,Scholar Travel,Award Costs,Diversity Travel,PIN034385,762.64,
BEIS,CSC,20/07/2018,Scholar Travel,Award Costs,Diversity Travel,PIN034385,451.8,
BEIS,CSC,20/07/2018,Scholar Travel,Award Costs,Diversity Travel,PIN034385,334.34,
BEIS,CSC,20/07/2018,Scholar Travel,Award Costs,Diversity Travel,PIN034385,334.5,
BEIS,CSC,20/07/2018,Scholar Travel,Award Costs,Diversity Travel,PIN034385,385.8,
DFID,CSC,20/07/2018,Scholar Travel,Award Costs,Diversity Travel,PIN034385,483.14,
BEIS,CSC,20/07/2018,Scholar Travel,Award Costs,Diversity Travel,PIN034385,441.5,
BEIS,CSC,20/07/2018,Scholar Travel,Award Costs,Diversity Travel,PIN034385,370.6,
DFID,CSC,20/07/2018,Scholar Travel,Award Costs,Diversity Travel,PIN034385,559.61,
DFID,CSC,20/07/2018,Scholar Travel,Award Costs,Diversity Travel,PIN034385,-483.14,
BEIS,CSC,20/07/2018,Scholar Travel,Award Costs,Diversity Travel,PIN034385,417,
DFID,CSC,20/07/2018,Scholar Travel,Award Costs,Diversity Travel,PIN034386,528.12,
DFID,CSC,20/07/2018,Fieldwork Airfare,Award Costs,Diversity Travel,PIN034386,317.61,
BEIS,CSC,20/07/2018,Scholar Travel,Award Costs,Diversity Travel,PIN034386,-258.6,
DFID,CSC,20/07/2018,Scholar Allowances,Award Costs,Scholar,PIN034387,360.19,
DFID,CSC,20/07/2018,Scholar Stipend,Award Costs,Scholar,PIN034387,3574.07,
DFID,CSC,20/07/2018,Scholar Stipend,Award Costs,Scholar,PIN034388,1065,
DFID,CSC,20/07/2018,Scholar Allowances,Award Costs,Scholar,PIN034389,458,
DFID,CSC,20/07/2018,Scholar Allowances,Award Costs,Scholar,PIN034389,458,
DFID,CSC,20/07/2018,Scholar Stipend,Award Costs,Scholar,PIN034389,2130,
DFID,CSC,20/07/2018,Scholar Allowances,Award Costs,Scholar,PIN034390,458,
DFID,CSC,20/07/2018,Scholar Allowances,Award Costs,Scholar,PIN034390,682,
DFID,CSC,20/07/2018,Scholar Stipend,Award Costs,Scholar,PIN034390,2130,
DFID,CSC,20/07/2018,Scholar Allowances,Award Costs,Scholar,PIN034393,458,
DFID,CSC,20/07/2018,Scholar Allowances,Award Costs,Scholar,PIN034393,458,
DFID,CSC,20/07/2018,Scholar Stipend,Award Costs,Scholar,PIN034393,2130,
DFID,CSC,20/07/2018,Scholar Allowances,Award Costs,Scholar,PIN034394,458,
DFID,CSC,20/07/2018,Scholar Allowances,Award Costs,Scholar,PIN034394,458,
DFID,CSC,20/07/2018,Scholar Stipend,Award Costs,Scholar,PIN034394,2130,
DFID,CSC,20/07/2018,Scholar Allowances,Award Costs,Scholar,PIN034396,600,
BEIS,CSC,20/07/2018,Scholar Allowances,Award Costs,Scholar,PIN034399,1000,
DFID,CSC,20/07/2018,Scholar Stipend,Award Costs,Scholar,PIN034400,1065,
DFID,CSC,20/07/2018,Scholar Stipend,Award Costs,Scholar,PIN034401,1082.49,
DFID,CSC,20/07/2018,Scholar Allowances,Award Costs,The Cambridge Commonwealth Trust,PIN034402,2025,
DFID,CSC,20/07/2018,Scholar Allowances,Award Costs,The Cambridge Commonwealth Trust,PIN034402,1400,
DFID,CSC,20/07/2018,Scholar Travel,Award Costs,The Cambridge Commonwealth Trust,PIN034402,1240.92,
DFID,CSC,20/07/2018,Award Support Costs,Award Costs,Glasgow Caledonian University,PIN034403,3000,
DFID,CSC,20/07/2018,Award Support Costs,Award Costs,Royal Veterinary College,PIN034404,2500,
DFID,CSC,20/07/2018,Tuition Fee,Award Costs,University of Stirling,PIN034405,14544,
DFID,CSC,20/07/2018,Award Support Costs,Award Costs,University of Surrey,PIN034406,1000,
DFID,CSC,20/07/2018,Alumni Engagement,Programme Costs,Scholar,PIN034407,1000,
BEIS,CSC,23/07/2018,Scholar Stipend,Award Costs,Scholar,PIN034412,4881,
DFID,CSC,23/07/2018,Scholar Allowances,Award Costs,Scholar,PIN034413,341,
DFID,CSC,23/07/2018,Scholar Allowances,Award Costs,Scholar,PIN034413,229,
DFID,CSC,23/07/2018,Scholar Allowances,Award Costs,Scholar,PIN034414,608.47,
DFID,CSC,23/07/2018,Scholar Allowances,Award Costs,Scholar,PIN034415,458,
DFID,CSC,23/07/2018,Scholar Stipend,Award Costs,Scholar,PIN034415,2877.32,
DFID,CSC,27/07/2018,Scholar Allowances,Award Costs,Scholar,PIN034418,600,
DFID,CSC,27/07/2018,Scholar Allowances,Award Costs,Scholar,PIN034419,600,
DFID,CSC,27/07/2018,Scholar Stipend,Award Costs,Scholar,PIN034425,1065,
DFID,CSC,27/07/2018,Scholar Allowances,Award Costs,Scholar,PIN034431,600,
DFID,CSC,27/07/2018,Award Support Costs,Award Costs,Glasgow Caledonian University,PIN034434,4500,
DFID,CSC,27/07/2018,Award Support Costs,Award Costs,Northumbria University,PIN034435,1500,
DFID,CSC,27/07/2018,Award Support Costs,Award Costs,University of Durham,PIN034436,3600,
DFID,CSC,30/07/2018,Scholar Stipend,Award Costs,Scholar,PIN034438,2130,
DFID,CSC,31/07/2018,Scholar Travel,Award Costs,Diversity Travel,PIN034439,634.4,
DFID,CSC,31/07/2018,Scholar Travel,Award Costs,Diversity Travel,PIN034439,703.69,
DFID,CSC,31/07/2018,Scholar Travel,Award Costs,Diversity Travel,PIN034439,697.81,
DFID,CSC,31/07/2018,Scholar Travel,Award Costs,Diversity Travel,PIN034439,545.21,
DFID,CSC,31/07/2018,Scholar Travel,Award Costs,Diversity Travel,PIN034439,457.18,
DFID,CSC,31/07/2018,Fieldwork Airfare,Award Costs,Diversity Travel,PIN034439,75,
BEIS,CSC,31/07/2018,Scholar Travel,Award Costs,Diversity Travel,PIN034441,411.1,
DFID,CSC,31/07/2018,Scholar Travel,Award Costs,Diversity Travel,PIN034441,629.41,
BEIS,CSC,31/07/2018,Scholar Travel,Award Costs,Diversity Travel,PIN034441,474.5,
BEIS,CSC,31/07/2018,Scholar Travel,Award Costs,Diversity Travel,PIN034441,377.5,
BEIS,CSC,31/07/2018,Scholar Travel,Award Costs,Diversity Travel,PIN034441,258.8,
BEIS,CSC,31/07/2018,Scholar Travel,Award Costs,Diversity Travel,PIN034441,321.1,
BEIS,CSC,31/07/2018,Scholar Travel,Award Costs,Diversity Travel,PIN034441,790.7,
BEIS,CSC,31/07/2018,Scholar Travel,Award Costs,Diversity Travel,PIN034441,286.5,
BEIS,CSC,31/07/2018,Scholar Travel,Award Costs,Diversity Travel,PIN034441,333.4,
BEIS,CSC,31/07/2018,Scholar Travel,Award Costs,Diversity Travel,PIN034441,373.6,
BEIS,CSC,31/07/2018,Scholar Travel,Award Costs,Diversity Travel,PIN034441,378.4,
BEIS,CSC,31/07/2018,Scholar Travel,Award Costs,Diversity Travel,PIN034441,300.7,
DFID,CSC,31/07/2018,Scholar Travel,Award Costs,Diversity Travel,PIN034442,529.41,
DFE,CSC,31/07/2018,Scholar Travel,Award Costs,Diversity Travel,PIN034442,839.55,
DFID,CSC,31/07/2018,Scholar Travel,Award Costs,Diversity Travel,PIN034442,394,
DFID,CSC,31/07/2018,Scholar Travel,Award Costs,Diversity Travel,PIN034442,805.29,
DFID,CSC,31/07/2018,Scholar Travel,Award Costs,Diversity Travel,PIN034442,600.71,
BEIS,CSC,31/07/2018,Scholar Travel,Award Costs,Diversity Travel,PIN034443,468.6,
DFID,CSC,31/07/2018,Scholar Travel,Award Costs,Diversity Travel,PIN034443,523.81,
DFID,CSC,31/07/2018,Scholar Travel,Award Costs,Diversity Travel,PIN034443,590.56,
DFID,CSC,31/07/2018,Scholar Travel,Award Costs,Diversity Travel,PIN034443,691.14,
DFID,CSC,31/07/2018,Scholar Travel,Award Costs,Diversity Travel,PIN034443,523.81,
BEIS,CSC,31/07/2018,Scholar Travel,Award Costs,Diversity Travel,PIN034443,327.3,
BEIS,CSC,31/07/2018,Scholar Travel,Award Costs,Diversity Travel,PIN034443,357.9,
BEIS,CSC,31/07/2018,Scholar Travel,Award Costs,Diversity Travel,PIN034443,424.5,
BEIS,CSC,31/07/2018,Scholar Travel,Award Costs,Diversity Travel,PIN034443,395.6,
BEIS,CSC,31/07/2018,Scholar Travel,Award Costs,Diversity Travel,PIN034443,345.7,
DFID,CSC,31/07/2018,Fieldwork Airfare,Award Costs,Diversity Travel,PIN034443,17.5,
DFID,CSC,31/07/2018,Fieldwork Airfare,Award Costs,Diversity Travel,PIN034443,770.04,
BEIS,CSC,31/07/2018,Scholar Travel,Award Costs,Diversity Travel,PIN034443,20.9,
BEIS,CSC,31/07/2018,Scholar Travel,Award Costs,Diversity Travel,PIN034443,385.5,
DFID,CSC,31/07/2018,Scholar Allowances,Award Costs,Scholar,PIN034444,135.43,
DFID,CSC,31/07/2018,Scholar Allowances,Award Costs,Scholar,PIN034444,135.43,
DFID,CSC,31/07/2018,Scholar Stipend,Award Costs,Scholar,PIN034444,629.82,
DFID,CSC,31/07/2018,Scholar Stipend,Award Costs,Scholar,PIN034445,532.5,
DFID,CSC,30/07/2018,Scholar Stipend,Award Costs,Scholar,PRF000065,-815,
DFID,CSC,02/07/2018,Commission Meetings,Admin Costs,Commission Chair,PPI034314,2625,
DFID,CSC,05/07/2018,Secretariat Travel,Programme Costs,NatWest CC,NOM000763,28.79,
DFID,CSC,05/07/2018,Scholar Engagement,Admin Costs,NatWest CC,NOM000763,100.58,
DFID,CSC,05/07/2018,Miscellaneous,Admin Costs,NatWest CC,NOM000763,275,
DFID,CSC,05/07/2018,Scholar Engagement,Programme Costs,NatWest CC,NOM000763,139.51,
DFID,CSC,05/07/2018,Scholar Engagement,Programme Costs,NatWest CC,NOM000763,140.5,
DFID,CSC,05/07/2018,Engagement,Admin Costs,NatWest CC,NOM000763,2.55,
DFID,CSC,05/07/2018,Engagement,Programme Costs,NatWest CC,NOM000763,20,
DFID,CSC,05/07/2018,Secretariat Service Provision,Programme Costs,NatWest CC,NOM000763,60,
DFID,CSC,05/07/2018,Engagement,Admin Costs,NatWest CC,NOM000763,1206.83,
